Cogmind - Beta 13 @@@ ROGUE MODE // 2024.03.31 @ 17:46:13 Player: KoT Result: Destroyed by S-10 Pest with Light Assault Rifle Performance ------------- Evolutions (1) 500 Regions Visited (2) 400 Robots Destroyed (22) 110 Value Destroyed (560) 560 Prototype IDs (0) 0 Alien Tech Used (0) 0 Bonus (0) 0 TOTAL SCORE: 1570 Bonus ------- None Cogmind --------- Core Integrity 0/400 Matter 206/300 Energy 349/350 System Corruption 0% Temperature Cool (0) Movement Core (450) Ox8 Location -9/Materials Parts ------- > --- POWER (2) -------- (None) > --- PROPULSION (2) --- (None) > --- UTILITY (2) ------ Large Storage Unit High-capacity Battery > --- WEAPON (3) ------- Heavy Assault Rifle > --- INVENTORY (15) --- Flight Unit Heat Sink Cooling System Large Battery (200) Structural Scanner Seismic Detector Particle Charger Hacking Suite Peak State ------------ > --- POWER ------------ Ion Engine Ion Engine > --- PROPULSION ------- Aluminum Leg Aluminum Leg > --- UTILITY ---------- Cooling System Large Storage Unit > --- WEAPON ----------- Medium Laser EM Pulse Cannon Assault Rifle > --- INVENTORY -------- Light Ion Engine Aluminum Leg Hover Unit Flight Unit Heat Sink High-capacity Battery Seismic Detector Particle Charger Hacking Suite Hacking Suite EM Pulse Cannon Grenade Launcher Grenade Launcher Mining Laser [Rating: 14] Favorites ----------- Power Ion Engine Engine Ion Engine Propulsion Aluminum Leg Leg Aluminum Leg Hover Unit Hover Unit Flight Unit Flight Unit Utility Large Storage Unit Device Heat Sink Storage Large Storage Unit Hackware Hacking Suite Weapon Medium Laser Energy Gun Medium Laser Energy Cannon EM Pulse Cannon Ballistic Gun Assault Rifle Launcher Grenade Launcher Special Weapon Mining Laser Build | -11 -10 -9 ------- Run | Yrd Mat Mat Slots Evolved 2 | . . 2 Power 1 | . . 1 Propulsion . | . . . Utility . | . . . Weapon 1 | . . 1 Parts Attached 35 | 5 6 24 Power 5 | 1 1 3 Engine 5 | 1 1 3 Core . | . . . Reactor . | . . . Propulsion 9 | 2 . 7 Treads . | . . . Leg 5 | 2 . 3 Wheel . | . . . Hover 2 | . . 2 Flight 2 | . . 2 Utility 7 | . 2 5 Device 3 | . 1 2 Storage 3 | . 1 2 Processor . | . . . Hackware 1 | . . 1 Protection . | . . . Artifact . | . . . Weapon 14 | 2 3 9 Energy Gun 4 | 1 1 2 Energy Cannon 2 | . . 2 Ballistic Gun 3 | 1 1 1 Ballistic Cannon . | . . . Launcher 3 | . 1 2 Special Weapon 2 | . . 2 Impact Weapon . | . . . Slashing Weapon . | . . . Piercing Weapon . | . . . Special Melee Weapon . | . . . Unidentified Prototypes . | . . . Parts Lost 16 | . 1 15 Power 4 | . . 4 Propulsion 3 | . . 3 Utility . | . . . Weapon 9 | . 1 8 Highest Loss Streak 14 | . 1 14 To Critical Strikes . | . . . Average Slot Usage (%) 76 | . 93 55 Engine 10 | . 14 7 Leg 19 | . 28 9 Device 9 | . 14 5 Storage 10 | . 8 13 Energy Gun 12 | . 16 8 Energy Cannon 1 | . . 3 Ballistic Gun 7 | . 9 4 Launcher 1 | . 1 . Naked Turns . | . . . Heaviest Build 42 | 7 31 42 Greatest Support 20 | 20 20 20 Greatest Overweight (x) 9 | . 1 9 Average Overweight (x) 1 | . . 4 Largest Inventory Capacity 15 | 5 15 15 Average Capacity 11 | 5 10 15 Most Carried 15 | 2 10 15 Average Carried 6 | . 4 10 Final Capacity 15 | 5 15 15 Final Carried 10 | 1 10 8 Class Distribution -------------------- 86% | Mutant 13% | Gunner Dominant Class ---------------- Mutant | -10/Materials Mutant | -9/Materials Resources | -11 -10 -9 ----------- Run | Yrd Mat Mat Matter Collected 552 | 259 112 181 Remotely . | . . . Salvage Created 748 | 43 341 364 Parts 45 | 2 22 21 Haulers Intercepted . | . . . Recyclers Shooed 1 | . 1 . Parts Field Recycled . | . . . Retrieved Matter . | . . . Parts Self-Destructed . | . . . Prevented . | . . . Kills | -11 -10 -9 ------- Run | Yrd Mat Mat Combat Hostiles Destroyed 18 | 1 9 8 Guns 9 | 1 7 1 Cannons 4 | . . 4 AOE 5 | . 2 3 Classes Destroyed 6 | 1 3 2 Recycler 2 | . 1 1 Operator 1 | . 1 . Watcher 1 | . . 1 Swarmer 6 | . 3 3 Grunt 10 | 1 6 3 Sentry 2 | . . 2 Best Kill Streak 7 | 1 3 7 Combat Bots Only 5 | 1 3 5 Max Kills in Single Turn 2 | 1 2 2 Gunslinging . | . . . Exploded 2 | . 2 2 Melee . | . . . Uniques/NPCs Destroyed . | . . . Combat | -11 -10 -9 -------- Run | Yrd Mat Mat Hostile Shots Fired 193 | 4 40 149 Missed 41 | 2 8 31 Damage Taken 1756 | 23 366 1367 Core 490 | . 86 404 Absorbed by Shields . | . . . Core Remaining (%) 82 | 100 65 . Volleys Fired 71 | 3 30 38 Largest 3 | 2 2 3 Hottest 133 | 70 90 133 Shots Fired 115 | 6 54 55 Gun 95 | 6 53 36 Cannon 14 | . . 14 Launcher 5 | . 1 4 Special 1 | . . 1 Kinetic 42 | 3 21 18 Thermal 49 | 3 27 19 Explosive 5 | . 1 4 Electromagnetic 19 | . 5 14 Robot Hit Streak 13 | 2 6 13 Robot Miss Streak 4 | 1 4 3 Penetration Max . | . . . Secondary Targets 1 | . 1 . Max Gunslinging Chain 1 | . 1 . Shots Hit Robots 70 | 4 31 35 Core Hits 32 | 2 16 14 Critical Kills 1 | . 1 . Critical Parts Destroyed . | . . . Critical Strikes 7 | . 4 3 Burn 5 | . 3 2 Destroy 1 | . 1 . Corrupt 1 | . . 1 Melee Attacks . | . . . Impact . | . . . Slashing . | . . . Piercing . | . . . Sneak Attacks . | . . . Combat Hostiles . | . . . Follow-up Attacks . | . . . Damage Inflicted 1444 | 54 483 907 Guns 787 | 54 415 318 Cannons 292 | . . 292 Explosions 341 | . 68 273 Melee . | . . . Ramming . | . . . Kinetic 301 | 15 137 149 Thermal 459 | 39 227 193 Explosive 341 | . 68 273 Electromagnetic 343 | . 51 292 Impact . | . . . Slashing . | . . . Piercing . | . . . Highest Corruption . | . . . Average Corruption . | . . . Corruption Purged . | . . . Corruption Blocked . | . . . Overload Shots . | . . . Overflow Damage 12 | . . 12 Projectiles 3 | . . 3 Explosions 9 | . . 9 Melee . | . . . Knockbacks . | . . . Impact . | . . . Kinetic . | . . . Secondary . | . . . Self-Inflicted Damage 7 | . . 7 Shots 1 | . . 1 Rammed . | . . . Targets Rammed . | . . . Kicked . | . . . Crushed . | . . . Highest Temperature 283 | 39 81 283 Average Temperature 71 | 20 39 86 Received Heat Transfer 672 | 12 159 501 Effects 2 | . . 2 Interference 2 | . . 2 Siege Activations . | . . . Robots Corrupted . | . . . Combat Hostiles . | . . . Parts Fried 1 | . . 1 Impact Corruptions . | . . . Robots Melted . | . . . Combat Hostiles . | . . . Parts Melted 3 | . 1 2 Heat Transferred 1641 | 111 888 642 Parts Sabotaged . | . . . Parts Stolen . | . . . Parts Stripped . | . . . Power Chain Reactions . | . . . Alert | -11 -10 -9 ------- Run | Yrd Mat Mat Peak Influence 233 | 20 233 210 Initial 49 | . 13 49 Average 105 | 2 99 135 Maximum Alert Level 1 | . 1 1 Low Security (%) 86 | 100 75 98 Level 1 13 | . 24 1 Level 2 . | . . . Level 3 . | . . . Level 4 . | . . . Level 5 . | . . . High Security . | . . . Max Security . | . . . Squads Dispatched 3 | . 2 1 Investigation 1 | . 1 . Extermination . | . . . Reinforcement 2 | . 1 1 Assault . | . . . Garrison . | . . . Intercept . | . . . Searches Triggered . | . . . Construction Impeded . | . . . Haulers Reinforced . | . . . Active Scanning Responses . | . . . Cargo Convoy Interrupts . | . . . Stealth | -11 -10 -9 --------- Run | Yrd Mat Mat Distress Signals 4 | . 3 1 Communications Jammed . | . . . Distress Signals . | . . . Times Spotted 31 | 1 15 15 Peak Tracking Total 7 | 1 4 7 Tactical Retreats 2 | . . 2 Traps | -11 -10 -9 ------- Run | Yrd Mat Mat Traps Triggered . | . . . Indirectly . | . . . Trap Hack Attempts . | . . . Triggered . | . . . Disarmed . | . . . Reprogrammed . | . . . Reused . | . . . Traps Extracted . | . . . Installed . | . . . Triggered . | . . . Machines | -11 -10 -9 ---------- Run | Yrd Mat Mat Machines Disabled . | . . . Max in Single Turn . | . . . Machines Repaired . | . . . Machines Dismantled . | . . . Machines Sabotaged . | . . . Overloaded Fab Kills . | . . . Hacking | -11 -10 -9 --------- Run | Yrd Mat Mat Machines Accessed 6 | . 5 1 Terminals 6 | . 5 1 Fabricators . | . . . Repair Stations . | . . . Recycling Units . | . . . Scanalyzers . | . . . Garrison Access . | . . . Total Hacks 13 | . 11 2 Successful 9 | . 7 2 Failed 4 | . 4 . Catastrophic . | . . . Database Lockouts . | . . . Manual . | . . . Terminals 13 | . 11 2 Fabricators . | . . . Repair Stations . | . . . Recycling Units . | . . . Scanalyzers . | . . . Garrison Access . | . . . Terminal Hacks 9 | . 7 2 Record 5 | . 3 2 Robot Analysis 1 | . 1 . Alert Level 2 | . 2 . Zone Layout 1 | . 1 . Fabricator Hacks . | . . . Repair Station Hacks . | . . . Recycling Unit Hacks . | . . . Scanalyzer . | . . . Garrison Access Hacks . | . . . Unauthorized Hacks . | . . . Terminals . | . . . Fabricators . | . . . Repair Stations . | . . . Recycling Units . | . . . Scanalyzers . | . . . Garrison Access . | . . . Data Cores Recovered 1 | . 1 . Used . | . . . Hacking Detections 4 | . 4 . Full Trace Events 1 | . 1 . Feedback Events . | . . . Feedback Blocked . | . . . Robot Schematics Acquired . | . . . Robots Built . | . . . Authchips . | . . . Time . | . . . Total Robot Build Rating . | . . . Part Schematics Acquired . | . . . Parts Built . | . . . Authchips . | . . . Time . | . . . Total Part Build Rating . | . . . Parts Repaired . | . . . Time . | . . . Parts Recycled . | . . . Recycled Matter . | . . . Retrieved Matter . | . . . Retrieved Components . | . . . Parts Scanalyzed . | . . . Part Schematics Acquired . | . . . Parts Damaged . | . . . Bothacking | -11 -10 -9 ------------ Run | Yrd Mat Mat Used RIF Installer . | . . . Robots Hacked . | . . . Non-combat . | . . . Combat . | . . . Robot Hacks Applied . | . . . Relay Couplers Released . | . . . Fabnet Peak Effective % . | . . . Robots Rewired . | . . . Allies Hacked . | . . . Hacks Repelled . | . . . Allies | -11 -10 -9 -------- Run | Yrd Mat Mat Total Allies . | . . . Largest Group . | . . . Highest-Rated Group . | . . . Highest-Rated Ally . | . . . Total Orders . | . . . Ally Attacks . | . . . Total Damage . | . . . Kills . | . . . Allies Corrupted . | . . . Allies Melted . | . . . Intel | -11 -10 -9 ------- Run | Yrd Mat Mat Robot Analysis Total 1 | . 1 . Derelict Logs Recovered . | . . . Drone Launches . | . . . Drone Recoveries . | . . . Exploration | -11 -10 -9 ------------- Run | Yrd Mat Mat Turns Passed 951 | 89 477 385 Spaces Moved 399 | 70 248 81 Core 56 | 20 . 36 Treads . | . . . Legs 340 | 50 248 42 Wheels . | . . . Hover 3 | . . 3 Flight . | . . . Fastest Speed 50 | 50 120 190 Average Speed 173 | 100 149 309 Slowest Speed 500 | 120 190 500 Overloaded Moves . | . . . Propulsion Burnouts . | . . . Robots Hopped . | . . . Cave-ins Triggered . | . . . Exploration Rate (%) 21 | 5 47 11 Regions Visited 2 Branch Regions . Pre-discovered Areas . | . . . Known Exits Taken . | . . . Unknown Exits Taken 2 | 1 1 . Scrap Searched . | . . . Spaces Dug . | . . . Terrain Destroyed 42 | . 12 30 Melee . | . . . Projectile . | . . . AOE 42 | . 12 30 Terrain Rammed . | . . . Walls Destroyed . | . . . Machines Disabled . | . . . Actions | -11 -10 -9 --------- Run | Yrd Mat Mat Total 547 | 83 301 163 Wait 4 | . 4 . Move 397 | 69 247 81 Hop . | . . . Pick Up 31 | 6 13 12 Fast Attach . | . . . Attach 28 | 5 4 19 Detach 6 | . . 6 Swap 7 | . 2 5 Drop 3 | . 1 2 Fire 71 | 3 30 38 Melee . | . . . Ram . | . . . Kick . | . . . Crush . | . . . Escape Stasis . | . . . Rewire . | . . . Trap . | . . . Miscellaneous . | . . . Route ------- -11/Scrapyard -10/Materials -9/Materials History --------- Turn | Location | Event 2 | -11/Scrapyard | Met Revision 17 63 | -11/Scrapyard | Discovered new exit (range 8) 90 | -11/Scrapyard | Entered Materials 319 | -10/Materials | Build established: Mutant 546 | -10/Materials | Discovered new exit (range 9) 567 | -10/Materials | Entered another Materials area 567 | -9/Materials | Evolved 2 slots: Power x1, Weapon x1 785 | -9/Materials | Core integrity fell below 50% 798 | -9/Materials | Core integrity fell below 20% 814 | -9/Materials | Lost 14 parts (4p3n7w) 952 | -9/Materials | Destroyed by S-10 Pest with Light Assault Rifle Last Messages --------------- 00806_ G-34 Mercenary suffers critical hit (Burn). 00808_ Acquired 65 matter. 00810_ G-34 Mercenary misfires. 00814_ Destroyed Sml. Laser. 00822_ The unstable cave ceiling collapses. 00824_ Acquired 52 matter. 00832_ Acquired Hvy. Assault Rifle. 00834_ The unstable cave ceiling collapses. 00873_ Acquired Lrg. Battery. 00884_ Connecting with Recycling Unit... 00936_ U-05 Engineer lays Concrete. 00937_ U-05 Engineer builds a Wall. 00940_ Beam Rifle destroyed. 00942_ U-05 Engineer lays Concrete. 00943_ Acquired 17 matter. 00943_ U-05 Engineer lays Concrete. 00944_ U-05 Engineer builds a Wall. 00949_ U-05 Engineer lays Concrete. 00951_ U-05 Engineer builds a Wall. Map ----- +----------------------------------------------------+ | | | | | | | | | | | | | | | | | | | | | | | | | | | | | ????######???????????????#############???????????? | | ???# #???????????????# ! #???????????? | | ???# #???????????????# """ "" #???????????? | | ???# #???????????????# """ Y" ##??????????? | | ???# #???????????????# """ "" #??????????? | | #### != #???????????????# ##??????????? | | !!## #???????????????# % ] #???????????? | | ! ## ! ################# #???????????? | | ## ############# # # ##+######???????????? | | ####+### # # # [# ## #??????????????? | | %= =!% #??????????????? | | ^^ T [% =@!* %= #??????????????? | | % ^ % =!!u =[ #??????????????? | | ########## #### sss#### #??????????????? | | ??????############### r### #######??????????????? | | ????????############# !#####????????????????????? | | ????????????????????# ##???????????????????????? | | ????????????????????# #????????????????????????? | | ????????????????????# #????????????????????????? | | ????????????????????# #????????????????????????? | | ????????????????????# #????????????????????????? | | ????????????????????# #????????????????????????? | | ????????????????????# #????????????????????????? | | ????????????????????# #????????????????????????? | | ????????????????????# #????????????????????????? | | ????????????????????+ #????????????????????????? | | ????????????????????# #????????????????????????? | | ????????????????????# #????????????????????????? | | ???????????????????? ????????????????????????? | | ????????????????????? ?????????????????????????? | | ?????????????????????????????????????????????????? | | ?????????????????????????????????????????????????? | | ?????????????????????????????????????????????????? | | ?????????????????????????????????????????????????? | | ?????????????????????????????????????????????????? | | ?????????????????????????????????????????????????? | +----------------------------------------------------+ Best States ------------- Heat Dissipation 50 Energy Generation 15 Energy Capacity 400 Matter Stores 300 Matter Capacity 300 Sight Range 16 Terrain Scan Density 10 Evasion (%) 55 Offensive Hacking 10 Item Schematics ----------------- None Robot Schematics ------------------ None Fabricated ------------ Nothing Alien Tech Used ----------------- None Achievements -------------- Crack Shot Challenges ------------ None Game ------ Seed ProjectionAutogunLeg Manual? 0 Play Time 00:24:16 Cumulative 0.7 hours Start 2024.03.31 @ 17:20:17 End 2024.03.31 @ 17:46:13 Sessions 1 Manual Loads 0 Difficulty Rogue Special Mode None Game No. 2 Rogue 2 Adventurer 0 Explorer 0 Win Type - Total 0 Types 0/0/0/0/0/0/0/0/0 Lore% 1 Gallery% 2 Achievement% 1 Wizard Run 0 Options --------- Layout 1 ASCII 0 Keyboard 0 Movement Mouse Keybinds 0 Fullscreen 1 Font 24/Smallcaps Map View 50x35 Zoom Use 0% Tactical HUD 1 Map Filters NONE Filters NONE Steam 0 RUN: 99ee0773-04f8-463b-8287-59e20721c806